Cogmind - Beta 16 @@@ ROGUE MODE // 2026.02.01 @ 03:09:06 Player: Shay Result: Destroyed by P-60 Hacker with Shock Rifle Performance ------------- Evolutions (4) 2000 Regions Visited (9) 1800 Robots Destroyed (21) 105 Value Destroyed (825) 825 Prototype IDs (14) 280 Alien Tech Used (0) 0 Bonus (300) 300 TOTAL SCORE: 5310 Bonus ------- Met Data Miner 300 Cogmind --------- Core Integrity 0/850 Matter 294/300 Energy 100/100 System Corruption 6% Temperature Cool (0) Movement Core (50) Location -6/Factory Parts ------- > --- POWER (2) -------- (None) > --- PROPULSION (5) --- (None) > --- UTILITY (5) ------ Advanced Visual Processing Unit Makeshift Hacking Suite > --- WEAPON (3) ------- (None) > --- INVENTORY (5) ---- Fission Core Advanced Sensor Array Advanced Signal Interpreter IFF Parser Advanced Terrain Scanner Peak State ------------ > --- POWER ------------ Deuterium Engine Light Nuclear Core > --- PROPULSION ------- Cesium-ion Thruster Cesium-ion Thruster Xenon Bombardment Thruster Improved Cesium-ion Thruster Nuclear Pulse Thruster > --- UTILITY ---------- Improved Heat Sink Small Storage Unit Advanced Weight Redist. System Advanced Visual Processing Unit Makeshift Hacking Suite > --- WEAPON ----------- Precision Shock Rifle Precision Shock Rifle Precision Shock Rifle > --- INVENTORY -------- Fission Core Improved Cooling System Energy Well Small Matter Pod Advanced Sensor Array Advanced Signal Interpreter Improved System Shield [Rating: 58] Favorites ----------- Power Deuterium Engine Engine Deuterium Engine Power Core Light Nuclear Core Propulsion Cesium-ion Thruster Leg Armored Leg Wheel Wheel Hover Unit Gravmag Array Flight Unit Cesium-ion Thruster Utility Small Storage Unit Device Advanced Weight Redist. System Storage Small Storage Unit Processor Advanced Visual Processing Unit Hackware Makeshift Hacking Suite Weapon Precision Shock Rifle Energy Gun Precision Shock Rifle Energy Cannon Plasma Cannon Ballistic Gun Light Assault Rifle Ballistic Cannon Assault Cannon Launcher Grenade Launcher Special Weapon Remote Datajack Build | -11 -10 -9 -8 -7 -7 -7 -7 -6 -6 ------- Run | Yrd Mat Mat Mat Fac Low Low Dat Pro Fac Slots Evolved 8 | . . 2 2 2 . . . . 2 Power 1 | . . . . . . . . . 1 Propulsion 3 | . . 2 . . . . . . 1 Utility 3 | . . . 1 2 . . . . . Weapon 1 | . . . 1 . . . . . . Parts Attached 59 | 6 4 4 6 9 2 . . 1 27 Power 7 | 1 . . 1 . . . . . 5 Engine 4 | 1 . . 1 . . . . . 2 Core 3 | . . . . . . . . . 3 Reactor . | . . . . . . . . . . Propulsion 17 | 2 2 2 . 4 1 . . 1 5 Treads . | . . . . . . . . . . Leg 1 | . . . . . . . . . 1 Wheel 2 | 2 . . . . . . . . . Hover 2 | . . . . . . . . . 2 Flight 12 | . 2 2 . 4 1 . . 1 2 Utility 10 | 1 1 1 1 2 . . . . 4 Device 5 | . 1 1 . 2 . . . . 1 Storage 2 | 1 . . . . . . . . 1 Processor 1 | . . . 1 . . . . . . Hackware 2 | . . . . . . . . . 2 Protection . | . . . . . . . . . . Artifact . | . . . . . . . . . . Weapon 25 | 2 1 1 4 3 1 . . . 13 Energy Gun 5 | . . . . . . . . . 5 Energy Cannon 5 | . . . . 2 1 . . . 2 Ballistic Gun 10 | 2 . 1 2 1 . . . . 4 Ballistic Cannon 3 | . . . 2 . . . . . 1 Launcher 1 | . 1 . . . . . . . . Special Weapon 1 | . . . . . . . . . 1 Impact Weapon . | . . . . . . . . . . Slashing Weapon . | . . . . . . . . . . Piercing Weapon . | . . . . . . . . . . Special Melee Weapon . | . . . . . . . . . . Unidentified Prototypes 4 | . . . 1 . . . . . 3 Parts Lost 30 | . . 1 . 3 . . . 4 22 Power 4 | . . . . . . . . . 4 Propulsion 12 | . . 1 . 2 . . . 1 8 Utility 6 | . . . . . . . . 2 4 Weapon 8 | . . . . 1 . . . 1 6 Highest Loss Streak 10 | . . 1 . 3 . . . 4 10 To Critical Strikes . | . . . . . . . . . . Average Backups 6 | 1 6 7 7 6 5 6 7 7 6 Power . | . 1 1 1 . 1 1 1 1 . Propulsion . | . 2 1 . 2 1 1 2 1 . Utility 4 | . . 1 3 3 2 3 3 3 5 Weapon 1 | . 2 3 2 . . . 1 1 . Tool/Special . | . . . . . . . . . . Unused Backups 18 | . . 4 3 3 . . . 1 7 Power 1 | . . . 1 . . . . . . Propulsion 2 | . . 2 . . . . . . . Utility 9 | . . . . 3 . . . . 6 Weapon 6 | . . 2 2 . . . . 1 1 Tool/Special . | . . . . . . . . . . Average Slot Usage (%) 77 | . 98 79 85 53 92 92 92 89 72 Engine 6 | . 14 11 9 5 7 7 7 7 5 Core 1 | . . . . . . . . . 3 Hover 1 | . . . . . . . . . 2 Flight 19 | . 19 24 26 15 30 30 30 30 15 Device 12 | . 12 11 9 9 23 23 23 21 9 Storage 8 | . 14 11 9 7 7 7 7 7 7 Processor 5 | . . . 8 7 7 7 7 7 6 Hackware 2 | . . . . . . . . . 6 Energy Gun 2 | . . . . . . . . . 5 Energy Cannon 3 | . . . . 3 13 15 15 13 1 Ballistic Gun 5 | . 22 13 8 1 1 . . . 4 Ballistic Cannon 1 | . . . 8 1 . . . . . Launcher 1 | . 5 8 7 . . . . . . Peak Build Rating 58 | 6 7 12 20 34 38 38 38 38 58 Average Rating 32 | 4 6 9 18 18 36 37 38 36 44 On Entrance 21 | . 6 7 12 15 34 37 38 38 30 Avg Prop Armor Cover (%) 2 | . . . . . . . . . 2 Naked Turns . | . . . . . . . . . . Heaviest Build 44 | 13 15 16 21 26 29 29 29 29 44 Greatest Support 37 | 20 20 21 21 28 30 30 30 30 37 Greatest Overweight (x) 7 | . 1 1 . 6 . . . 1 7 Average Overweight (x) . | . . . . . . . . . . Largest Inventory Capacity 8 | 8 8 8 8 8 8 8 8 8 8 Average Capacity 7 | 7 8 8 8 8 8 8 8 8 7 Most Carried 8 | 4 8 8 8 8 6 7 7 8 8 Average Carried 6 | 2 6 7 7 6 5 6 7 7 6 Final Capacity 8 | 8 8 8 8 8 8 8 8 8 5 Final Carried 8 | 4 8 8 8 4 5 7 7 7 5 Class Distribution -------------------- 50% | Mutant 24% | Sprinter 18% | Skirmisher 6% | Derelict-Sprinter Dominant Class ---------------- Mutant | -10/Materials Mutant | -9/Materials Skirmisher | -8/Materials Mutant | -7/Factory Sprinter | -7/Lower Caves Sprinter | -7/Lower Caves Sprinter | -7/Data Miner Sprinter | -6/Proximity Caves Mutant | -6/Factory Resources | -11 -10 -9 -8 -7 -7 -7 -7 -6 -6 ----------- Run | Yrd Mat Mat Mat Fac Low Low Dat Pro Fac Matter Collected 1369 | 229 62 39 1 196 47 98 . 177 520 Remotely . | . . . . . . . . . . Salvage Created 866 | . 87 33 . 104 . . . 232 410 Parts 48 | . 8 8 1 3 . . . 4 24 Haulers Intercepted . | . . . . . . . . . . Recyclers Shooed 2 | . 1 . . . . . . . 1 Parts Field Recycled . | . . . . . . . . . . Retrieved Matter . | . . . . . . . . . . Parts Self-Destructed 5 | . . . . . . 3 . 2 . Prevented . | . . . . . . . . . . Parts Restored . | . . . . . . . . . . Kills | -11 -10 -9 -8 -7 -7 -7 -7 -6 -6 ------- Run | Yrd Mat Mat Mat Fac Low Low Dat Pro Fac Combat Hostiles Destroyed 15 | . 4 3 . 2 . . . . 6 Guns 9 | . 2 2 . 1 . . . . 4 Cannons 2 | . . . . 1 . . . . 1 AOE 4 | . 2 1 . . . . . . 1 Classes Destroyed 7 | . 2 1 1 . . . . . 3 Worker 1 | . . . . . . . . . 1 Operator 2 | . . 1 . . . . . . 1 Watcher 3 | . . . 1 . . . . . 2 Swarmer 5 | . 2 3 . . . . . . . Grunt 5 | . 2 . . 2 . . . . 1 Sentry 1 | . . . . . . . . . 1 Programmer 4 | . . . . . . . . . 4 Best Kill Streak 3 | . 2 3 1 1 . . . . 2 Combat Bots Only 3 | . 2 3 . 1 . . . . 2 Max Kills in Single Turn 2 | . 2 1 1 1 . . . . 1 Gunslinging . | . . . . . . . . . . Exploded 2 | . 2 1 . . . . . . 1 Melee . | . . . . . . . . . . Uniques/NPCs Destroyed . | . . . . . . . . . . Combat | -11 -10 -9 -8 -7 -7 -7 -7 -6 -6 -------- Run | Yrd Mat Mat Mat Fac Low Low Dat Pro Fac Hostile Shots Fired 413 | . 6 27 14 37 . . . 51 278 Missed 164 | . 1 12 8 8 . . . 27 108 Hits 249 | . 5 15 6 29 . . . 24 170 Melee 2 | . . . . . . . . . 2 Projectile 247 | . 5 15 6 29 . . . 24 168 Critical Strikes 12 | . . 1 . 1 . . . 2 8 Damage Taken 3626 | . 43 146 89 430 . . . 391 2527 Core 1137 | . . 35 29 147 . . . 73 853 Absorbed by Shields . | . . . . . . . . . . Core Remaining (%) 90 | 100 100 91 94 . . . . 68 . Volleys Fired 91 | . 4 8 8 17 . . . 4 50 Largest 3 | . 2 2 3 2 . . . 2 3 Hottest 165 | . 50 53 90 105 . . . 155 165 Shots Fired 180 | . 8 16 16 24 . . . 8 108 Gun 133 | . 7 13 8 7 . . . . 98 Cannon 36 | . . . 5 17 . . . 8 6 Launcher 7 | . 1 3 3 . . . . . . Special 4 | . . . . . . . . . 4 Kinetic 101 | . 7 13 13 7 . . . . 61 Thermal 25 | . . . . 17 . . . 8 . Explosive 7 | . 1 3 3 . . . . . . Electromagnetic 43 | . . . . . . . . . 43 Robot Hit Streak 10 | . 6 4 3 6 . . . 7 10 Robot Miss Streak 5 | . . 5 3 2 . . . . 3 Penetration Max 1 | . . . . . . . . . 1 Secondary Targets 2 | . 1 . . . . . . . 1 Max Gunslinging Chain 1 | . 1 . . . . . . . 1 Shots Hit Robots 111 | . 6 7 7 15 . . . 5 71 Core Hits 52 | . 6 4 4 5 . . . 4 29 Critical Kills 1 | . . . . . . . . . 1 Critical Parts Destroyed 3 | . . . . . . . . . 3 Critical Strikes 6 | . . . . . . . . . 6 Destroy 5 | . . . . . . . . . 5 Corrupt 1 | . . . . . . . . . 1 Melee Attacks . | . . . . . . . . . . Impact . | . . . . . . . . . . Slashing . | . . . . . . . . . . Piercing . | . . . . . . . . . . Sneak Attacks . | . . . . . . . . . . Combat Hostiles . | . . . . . . . . . . Follow-up Attacks . | . . . . . . . . . . Damage Inflicted 2260 | . 139 180 211 338 . . . 148 1244 Guns 1154 | . 47 84 25 84 . . . . 914 Cannons 573 | . . . 81 254 . . . 148 90 Explosions 499 | . 88 96 105 . . . . . 210 Melee . | . . . . . . . . . . Ramming 34 | . 4 . . . . . . . 30 Kinetic 1007 | . 47 84 106 84 . . . . 686 Thermal 612 | . . . . 254 . . . 148 210 Explosive 289 | . 88 96 105 . . . . . . Electromagnetic 318 | . . . . . . . . . 318 Impact . | . . . . . . . . . . Slashing . | . . . . . . . . . . Piercing . | . . . . . . . . . . Highest Corruption 5 | . 2 . . 2 2 2 2 2 5 Average Corruption 2 | . 2 . . 2 2 2 2 2 2 Corruption Purged . | . . . . . . . . . . Corruption Blocked . | . . . . . . . . . . Effects 24 | . 1 . . 1 2 3 1 2 14 Message Errors 6 | . . . . . 1 1 1 1 2 Matter Fused 9 | . 1 . . 1 1 1 . . 5 Heat Flow Errors 3 | . . . . . . 1 . . 2 Energy Discharges 1 | . . . . . . . . 1 . Parts Rejected 2 | . . . . . . . . . 2 Data Loss (minor) 1 | . . . . . . . . . 1 Alerts 2 | . . . . . . . . . 2 Overload Shots . | . . . . . . . . . . Overflow Damage 59 | . . . . 8 . . . . 51 Projectiles 34 | . . . . 8 . . . . 26 Explosions 25 | . . . . . . . . . 25 Melee . | . . . . . . . . . . Knockbacks 2 | . . . 2 . . . . . . Impact . | . . . . . . . . . . Kinetic 2 | . . . 2 . . . . . . Secondary . | . . . . . . . . . . Self-Inflicted Damage 43 | . 2 25 4 . . . . . 12 Shots 2 | . . 1 1 . . . . . . Rammed 9 | . 1 . . . . . . . 8 Targets Rammed 9 | . 1 . . . . . . . 8 Kicked . | . . . . . . . . . . Crushed . | . . . . . . . . . . Highest Temperature 384 | . 14 17 384 223 . 195 . 130 326 Average Temperature 89 | . 10 10 126 78 . 118 . 59 94 Received Heat Transfer 931 | . 6 27 36 279 . . . 57 526 Effects 4 | . . . 1 2 . . . . 1 Energy Bleed 1 | . . . . . . . . . 1 Interference 2 | . . . . 2 . . . . . Short Circuit 1 | . . . 1 . . . . . . Siege Activations . | . . . . . . . . . . Martial Activations . | . . . . . . . . . . Shielding Activations . | . . . . . . . . . . Robots Disrupted . | . . . . . . . . . . Combat Hostiles . | . . . . . . . . . . Robots Corrupted . | . . . . . . . . . . Combat Hostiles . | . . . . . . . . . . Parts Fried 3 | . . . . . . . . . 3 Impact Corruptions . | . . . . . . . . . . Robots Melted . | . . . . . . . . . . Combat Hostiles . | . . . . . . . . . . Parts Melted 1 | . . . . 1 . . . . . Heat Transferred 848 | . . . . 500 . . . 248 100 Parts Sabotaged . | . . . . . . . . . . Parts Stolen . | . . . . . . . . . . Parts Stripped . | . . . . . . . . . . Power Chain Reactions 1 | . . . . . . . . . 1 Alert | -11 -10 -9 -8 -7 -7 -7 -7 -6 -6 ------- Run | Yrd Mat Mat Mat Fac Low Low Dat Pro Fac Maximum Alert Level 1 | . . . . . . . . . 1 Low Security (%) 90 | 100 100 100 100 100 . . . . 83 Level 1 9 | . . . . . . . . . 16 Level 2 . | . . . . . . . . . . Level 3 . | . . . . . . . . . . Level 4 . | . . . . . . . . . . Level 5 . | . . . . . . . . . . High Security . | . . . . . . . . . . Max Security . | . . . . . . . . . . Peak Influence 252 | . 69 72 79 60 . . . . 252 Initial 30 | . . 11 29 30 . . . . 18 Average 51 | . 34 19 24 13 . . . . 74 Influence Increases 1275 | . 119 112 144 145 15 . . 85 655 Destroy 0b10 Robot/C 300 | . 80 60 . 40 . . . . 120 Destroy 0b10 Robot/NC 40 | . . 5 5 . . . . 10 20 Destroy Leader 86 | . 20 . 2 10 . . . . 54 Successful Hack 5 | . . . . 5 . . . . . Disable Machine 60 | . . 30 . 15 . . . . 15 Anti-Garrison Action 150 | . . . . . . . . . 150 Destroy Structure 79 | . 4 17 32 . . . . . 26 Partial Spotted 120 | . . . 30 60 . . . . 30 Lose Combat Pursuer 435 | . 15 . 75 15 15 . . 75 240 Influence Decreases 1128 | . 90 69 147 154 75 . . 55 538 Entered New Map 135 | . . 18 43 39 23 . . . 12 Time Decay 777 | . 90 41 104 105 52 . . 35 350 Lost Part 216 | . . 10 . 10 . . . 20 176 Squads Dispatched 11 | . . 1 . 2 . . . 1 7 Investigation . | . . . . . . . . . . Extermination 4 | . . . . . . . . . 4 Reinforcement 4 | . . 1 . 2 . . . . 1 Assault 3 | . . . . . . . . 1 2 Garrison . | . . . . . . . . . . Intercept . | . . . . . . . . . . Searches Triggered . | . . . . . . . . . . Data Miner Redirects 2 | . . . . . . . . . 2 Construction Impeded 1 | . . . . . . . . . 1 Haulers Reinforced . | . . . . . . . . . . Active Scanning Responses . | . . . . . . . . . . Cargo Convoy Interrupts . | . . . . . . . . . . Stealth | -11 -10 -9 -8 -7 -7 -7 -7 -6 -6 --------- Run | Yrd Mat Mat Mat Fac Low Low Dat Pro Fac Distress Signals 3 | . . 1 2 . . . . . . Communications Jammed . | . . . . . . . . . . Distress Signals . | . . . . . . . . . . Times Spotted 83 | . 5 7 11 7 1 . . 18 34 Peak Tracking Total 16 | . 3 4 8 3 1 . . 16 9 Tactical Retreats 12 | . 1 . 1 1 1 . . 2 6 Traps | -11 -10 -9 -8 -7 -7 -7 -7 -6 -6 ------- Run | Yrd Mat Mat Mat Fac Low Low Dat Pro Fac Traps Triggered 6 | . . . 1 2 . . . . 3 Indirectly . | . . . . . . . . . . Trap Hack Attempts . | . . . . . . . . . . Triggered . | . . . . . . . . . . Disarmed . | . . . . . . . . . . Reprogrammed . | . . . . . . . . . . Reused . | . . . . . . . . . . Traps Extracted . | . . . . . . . . . . Installed . | . . . . . . . . . . Triggered . | . . . . . . . . . . Machines | -11 -10 -9 -8 -7 -7 -7 -7 -6 -6 ---------- Run | Yrd Mat Mat Mat Fac Low Low Dat Pro Fac Machines Disabled 5 | . . 2 . 1 . . . . 2 Max in Single Turn 2 | . . 1 . 1 . . . . 2 Garrison Access 1 | . . . . . . . . . 1 Machines Repaired . | . . . . . . . . . . Machines Dismantled . | . . . . . . . . . . Machines Sabotaged . | . . . . . . . . . . Overloaded Fab Kills . | . . . . . . . . . . Hacking | -11 -10 -9 -8 -7 -7 -7 -7 -6 -6 --------- Run | Yrd Mat Mat Mat Fac Low Low Dat Pro Fac Machines Accessed 7 | . . . 1 1 . . 4 . 1 Terminals 2 | . . . . 1 . . . . 1 Fabricators . | . . . . . . . . . . Repair Stations . | . . . . . . . . . . Recycling Units . | . . . . . . . . . . Scanalyzers . | . . . . . . . . . . Garrison Access 1 | . . . 1 . . . . . . Total Hacks 34 | . . . 2 1 . . 29 . 2 Successful 31 | . . . . 1 . . 29 . 1 Failed 3 | . . . 2 . . . . . 1 Catastrophic 2 | . . . 2 . . . . . . Database Lockouts . | . . . . . . . . . . Manual . | . . . . . . . . . . Terminals 3 | . . . . 1 . . . . 2 Fabricators . | . . . . . . . . . . Repair Stations . | . . . . . . . . . . Recycling Units . | . . . . . . . . . . Scanalyzers . | . . . . . . . . . . Garrison Access 2 | . . . 2 . . . . . . Terminal Hacks 31 | . . . . 1 . . 29 . 1 Record 11 | . . . . . . . 11 . . Part Schematic 12 | . . . . . . . 12 . . Robot Schematic 3 | . . . . . . . 3 . . Prototype ID Bank 3 | . . . . . . . 3 . . Open DSF 2 | . . . . 1 . . . . 1 Fabricator Hacks . | . . . . . . . . . . Repair Station Hacks . | . . . . . . . . . . Recycling Unit Hacks . | . . . . . . . . . . Scanalyzer . | . . . . . . . . . . Garrison Access Hacks . | . . . . . . . . . . Unauthorized Hacks . | . . . . . . . . . . Terminals . | . . . . . . . . . . Fabricators . | . . . . . . . . . . Repair Stations . | . . . . . . . . . . Recycling Units . | . . . . . . . . . . Scanalyzers . | . . . . . . . . . . Garrison Access . | . . . . . . . . . . Data Cores Recovered 2 | . . 1 . . . . . . 1 Used . | . . . . . . . . . . Hacking Detections 2 | . . . 1 . . . . . 1 Full Trace Events . | . . . . . . . . . . Feedback Events . | . . . . . . . . . . Feedback Blocked . | . . . . . . . . . . Robot Schematics Acquired 3 | . . . . . . . 3 . . Robots Built . | . . . . . . . . . . Authchips . | . . . . . . . . . . Time . | . . . . . . . . . . Total Robot Build Rating . | . . . . . . . . . . Part Schematics Acquired 12 | . . . . . . . 12 . . Parts Built . | . . . . . . . . . . Authchips . | . . . . . . . . . . Time . | . . . . . . . . . . Total Part Build Rating . | . . . . . . . . . . Part Studies Acquired . | . . . . . . . . . . Parts Repaired . | . . . . . . . . . . Time . | . . . . . . . . . . Parts Recycled . | . . . . . . . . . . Recycled Matter . | . . . . . . . . . . Retrieved Matter . | . . . . . . . . . . Retrieved Components . | . . . . . . . . . . Parts Scanalyzed . | . . . . . . . . . . Part Schematics Acquired . | . . . . . . . . . . Parts Damaged . | . . . . . . . . . . Bothacking | -11 -10 -9 -8 -7 -7 -7 -7 -6 -6 ------------ Run | Yrd Mat Mat Mat Fac Low Low Dat Pro Fac Used RIF Installer . | . . . . . . . . . . Robots Hacked 2 | . . . . . . . . . 2 Non-combat 1 | . . . . . . . . . 1 Combat 1 | . . . . . . . . . 1 Robot Hacks Applied 3 | . . . . . . . . . 3 parse_system 1 | . . . . . . . . . 1 no_distress 1 | . . . . . . . . . 1 find_recycling 1 | . . . . . . . . . 1 Relay Couplers Released 2 | . . . . . . . . . 2 Machine Destruction 2 | . . . . . . . . . 2 Fabnet Peak Effective % . | . . . . . . . . . . Robots Rewired . | . . . . . . . . . . Allies Hacked . | . . . . . . . . . . Hacks Repelled . | . . . . . . . . . . Allies | -11 -10 -9 -8 -7 -7 -7 -7 -6 -6 -------- Run | Yrd Mat Mat Mat Fac Low Low Dat Pro Fac Total Allies . | . . . . . . . . . . Largest Group . | . . . . . . . . . . Highest-Rated Group . | . . . . . . . . . . Highest-Rated Ally . | . . . . . . . . . . Total Orders . | . . . . . . . . . . Ally Attacks . | . . . . . . . . . . Total Damage . | . . . . . . . . . . Kills . | . . . . . . . . . . Allies Corrupted . | . . . . . . . . . . Allies Melted . | . . . . . . . . . . Intel | -11 -10 -9 -8 -7 -7 -7 -7 -6 -6 ------- Run | Yrd Mat Mat Mat Fac Low Low Dat Pro Fac Active Infowar (turns) 2489 | . 216 76 236 167 128 159 35 130 1342 Optics 2197 | . . . 236 167 128 159 35 130 1342 Terrain 292 | . 216 76 . . . . . . . Robot Analysis Total . | . . . . . . . . . . Derelict Logs Recovered 2 | . . . . . . 1 . 1 . Drone Launches . | . . . . . . . . . . Drone Recoveries . | . . . . . . . . . . Exploration | -11 -10 -9 -8 -7 -7 -7 -7 -6 -6 ------------- Run | Yrd Mat Mat Mat Fac Low Low Dat Pro Fac Turns Passed 2826 | 52 236 154 258 332 128 159 35 130 1342 Spaces Moved 4181 | 50 186 158 440 533 323 307 93 334 1757 Core 81 | 3 . . . 2 . . . . 76 Treads . | . . . . . . . . . . Legs 3 | . . . . . . . . . 3 Wheels 110 | 47 63 . . . . . . . . Hover 457 | . . . . . . . . . 457 Flight 3530 | . 123 158 440 531 323 307 93 334 1221 Fastest Speed 25 | 50 80 34 34 27 27 27 27 27 25 Average Speed 46 | 78 104 69 34 46 27 27 27 31 51 Slowest Speed 400 | 80 117 120 37 350 27 27 27 110 400 Overloaded Moves . | . . . . . . . . . . Propulsion Burnouts . | . . . . . . . . . . Robots Hopped 22 | . . . 7 2 . . . 1 12 Potential Cave-ins . | . . . . . . . . . . Cave-ins Triggered . | . . . . . . . . . . Exploration Rate (%) 39 | 4 42 29 40 19 50 50 79 52 30 Regions Visited 9 Branch Regions 4 Pre-discovered Areas 1 | . . . . . . . 1 . . Known Exits Taken 1 | . . . . . . . . 1 . Unknown Exits Taken 8 | 1 1 1 1 1 1 1 1 . . Scrap Searched 3 | . . . . . 1 1 . 1 . Spaces Dug . | . . . . . . . . . . Terrain Destroyed 74 | . 3 16 28 . . . . . 27 Melee . | . . . . . . . . . . Projectile 7 | . . . 1 . . . . . 6 AOE 66 | . 3 16 27 . . . . . 20 Terrain Rammed . | . . . . . . . . . . Walls Destroyed . | . . . . . . . . . . Machines Disabled . | . . . . . . . . . . Actions | -11 -10 -9 -8 -7 -7 -7 -7 -6 -6 --------- Run | Yrd Mat Mat Mat Fac Low Low Dat Pro Fac Total 4869 | 59 221 188 528 594 363 382 102 348 2084 Wait 456 | . 12 6 65 20 35 74 10 8 226 Move 4129 | 49 185 157 425 528 322 306 92 331 1734 Hop 21 | . . . 7 2 . . . 1 11 Pick Up 51 | 4 6 5 8 10 2 2 . 2 12 Fast Attach 34 | 6 2 3 . 3 1 . . . 19 Attach 28 | . 3 . 4 8 1 . . 1 11 Detach 5 | . 3 . 1 . . . . . 1 Swap 9 | . 2 3 3 . . . . . 1 Drop 36 | . 3 6 7 6 2 . . 1 11 Fire 91 | . 4 8 8 17 . . . 4 50 Melee . | . . . . . . . . . . Ram 9 | . 1 . . . . . . . 8 Kick . | . . . . . . . . . . Crush . | . . . . . . . . . . Escape Stasis . | . . . . . . . . . . Rewire . | . . . . . . . . . . Trap . | . . . . . . . . . . Miscellaneous . | . . . . . . . . . . Route ------- -11/Scrapyard -10/Materials (discovered 2 exits: [*Mat] / [*Min]) -9/Materials -8/Materials -7/Factory -7/Lower Caves -7/Lower Caves -7/Data Miner -6/Proximity Caves -6/Factory (discovered 2 exits: Fac x2) History --------- Turn | Location | Event 16 | -11/Scrapyard | Discovered new exit (range 16) 53 | -11/Scrapyard | Entered Materials 147 | -10/Materials | Discovered new exit (range 12) 268 | -10/Materials | Discovered new exit (range 15) 289 | -10/Materials | Entered another Materials area 289 | -9/Materials | Evolved 2 slots: Propulsion x2 309 | -9/Materials | Build established: Mutant 433 | -9/Materials | Discovered new exit (range 8) 443 | -9/Materials | Entered another Materials area 443 | -8/Materials | Evolved 2 slots: Utility x1, Weapon x1 695 | -8/Materials | Discovered new exit (range 12) 701 | -8/Materials | Entered Factory 701 | -7/Factory | Evolved 2 slots: Utility x2 927 | -7/Factory | Lost 3 parts (2n1w) 1028 | -7/Factory | Discovered new exit (range 8) 1033 | -7/Factory | Entered Lower Caves 1157 | -7/Lower Caves | Discovered new exit (range 13) 1161 | -7/Lower Caves | Entered another Lower Caves area 1266 | -7/Lower Caves | Build established: Sprinter 1286 | -7/Lower Caves | Discovered new exit (range 10) 1287 | -7/Lower Caves | Learned 8 Factory zone layouts 1320 | -7/Lower Caves | Entered Data Miner 1320 | -7/Data Miner | Discovered new exit (range 6) 1325 | -7/Data Miner | Met Data Miner 1334 | -7/Data Miner | Learned location of Section 7 (-2) 1334 | -7/Data Miner | Acquired the access code to Warlord's prototype stash 1339 | -7/Data Miner | Received God Mode back door access code from Data Miner 1355 | -7/Data Miner | Entered Proximity Caves 1357 | -6/Proximity Caves | Attracted the attention of an 0b10 checkpoint 1468 | -6/Proximity Caves | Attracted the attention of an 0b10 outpost 1477 | -6/Proximity Caves | Identified exit to Factory 1485 | -6/Proximity Caves | Entered Factory 1485 | -6/Factory | Evolved 2 slots: Power x1, Propulsion x1 1486 | -6/Factory | Identified exit to Factory 1503 | -6/Factory | Lost 4 parts (1n2u1w) 2007 | -6/Factory | Lost 3 parts (3n) 2024 | -6/Factory | Noticed a derelict Sapper rigging charges 2288 | -6/Factory | Build established: Mutant 2465 | -6/Factory | Incoming assault squad redirected 2690 | -6/Factory | Incoming assault squad redirected 2730 | -6/Factory | Core integrity fell below 50% 2760 | -6/Factory | Lost 10 parts (2p1n3u4w) 2792 | -6/Factory | Core integrity fell below 20% 2827 | -6/Factory | Destroyed by P-60 Hacker with Shock Rifle Last Messages --------------- Slammed into R-10 Processor. Slug penetrates Wall. K-01 Serf cleans the Recycling Unit. Acquired Arm. Leg. Dropped Arm. Leg. K-01 Serf cleans the Neutrino Reactor. R-10 Processor inserts Imp. Heat Sink into recycling unit. Recycling unit begins recycling process. K-01 Serf cleans the Neutrino Reactor. K-01 Serf cleans the Recycling Unit. System corrupted: IFF burst signal emitted. R-10 Processor inserts Imp. Heat Sink into recycling unit. Slammed into R-10 Processor. Slammed into U-05 Engineer. Acquired 92 matter. Slammed into K-01 Serf. Destabilizing: System corrupted (+2). Slammed into K-01 Serf. Map ----- +----------------------------------------------------+ | ???????????? ?"""" """" """" """" """" #?? | | ???????????? ??"""" """" """" """" """" #?? | | ???????????? ?????? #?? | | ????????????? ????????? ! #?? | | ????????????? ? #?? | | ########????????????##??# #?? | | #???????????????????????# #?? | | ########????????????????# #?? | | # ??????########### """ """ """ #?? | | # ??????# # """ """ """ #?? | | # """"""??????# # """ """ """ #?? | | # ??????# # #?? | | # """"""??????# + #?? | | # ??????# # ###########/######### | | + """"""??????# # #???# # | | # ??????# # #???# """ """ """ # | | # """"""??????# # #???# """ """ """ # | | # ??????########### ##### """ """ """ # | | # """"""?????????????# / # | | # ???????????###p##/##### * """ """ # | | ########???????????# # # #?# """ """ # | | ########???????????# # # #?# "Y" """ """ # | | # T ???????????# # # #?# """ # | | # ???"???????# # #! #?# = # | | # ?"""?? ? ??# # # #################/# | | # """ ?###@# ## #?# # | | # ??## # ## ### # | | # ??#k# ## """""" # | | # ??# # ## """""" # | | + ??# ####### """""" # | | ###### ###########???# #?????# """""" # | | ####???# ] #???# #?????# + | | %#""##### #???# #?????# """"" # | | | # """ #####+####### """"" # | | # """ ! + / # """ # | | # """ ""# ### # + | | + "" ! Y"# #?#]] # # | | # "" ""# #?#] ############## | | ##### # # #?# # # | | ????# ########### ### # # | | ????# # # """"""""" # | | ????# # # # | | ????# + ! # """"""""" # | | ????# # # + | | ????# # """" # """"""""" # | | ????###########+### # """" # # | | ??????# # # """" # """"""""" ##### | | ??????# """"""""" # # """" # #???? | | ??????# # # """" # """"""""" #???? | | ??????# """"""""" # # """" # #???? | +----------------------------------------------------+ Best States ------------- Heat Dissipation 51 Energy Generation 27 Energy Capacity 830 Matter Stores 300 Matter Capacity 300 Sight Range 20 Terrain Scan Range 14 Terrain Scan Density 10 Additional Mass Support 9 Evasion (%) 72 Offensive Hacking 11 Defensive Hacking 12 Item Schematics ----------------- Combat Drone Bay | -7/Data Miner | Free Lgt. Regenerative Plating | -7/Data Miner | Free Cld. Cesium-ion Thruster | -7/Data Miner | Free Gravity Neutralizer | -7/Data Miner | Free Com. Ion Cannon | -7/Data Miner | Free Antigrav System | -7/Data Miner | Free Adv. Shield Generator | -7/Data Miner | Free Hyp. Coil Gun | -7/Data Miner | Free Lgt. Angular Momentum Engine | -7/Data Miner | Free Imp. Shock Absorption System | -7/Data Miner | Free Micro-nuke Launcher | -7/Data Miner | Free Adv. Coolant Injector | -7/Data Miner | Free Robot Schematics ------------------ S-27 Virus | -7/Data Miner | Free M-14 Sweeper | -7/Data Miner | Free O-24 Administrator | -7/Data Miner | Free Fabricated ------------ Nothing Repaired ---------- Nothing Studied --------- None Alien Tech Used ----------------- None Achievements -------------- Can't Catch Me Junior Dev Librarian Please Form A Line Spot Them First The Oracle Challenges ------------ None Game ------ Seed AutogunCompositeMatrix Manual? 0 Play Time 00:56:55 Cumulative 2.7 hours Start 2026.02.01 @ 01:31:30 End 2026.02.01 @ 03:09:06 Sessions 1 Manual Loads 0 Difficulty Rogue Special Mode None Game No. 5 Rogue 5 Adventurer 0 Explorer 0 Win Type - Total 0 Types 0/0/0/0/0/0/0/0/0/0 Lore% 3 Gallery% 8 Achievement% 8 Wizard Run 0 Options --------- Layout 1 ASCII 0 Keyboard 0 Movement Numpad Keybinds 0 Fullscreen 1 Font 24/Terminus Map View 50x35 Zoom Use 0% Tactical HUD 0 Map Filters NONE Filters NONE Steam 0 RUN: 2541a6a0-afca-4016-8e97-0613979d71d9